[Event "*** Titled Tuesday Blitz"]
[Site "Chess.com"]
[Date "2020.05.12"]
[Round "7"]
[White "krasavetc"]
[Black "dosto07"]
[Result "1/2-1/2"]
[WhiteElo "2278"]
[BlackElo "2059"]
[TimeControl "180+1"]
[EndTime "11:15:46 PDT"]
[Termination "Game drawn by stalemate"]

1. e4 {[%clk 0:03:00.9]} 1... e5 {[%clk 0:02:59]} 2. Nf3 {[%clk 0:02:56.9]} 2...
Nc6 {[%clk 0:02:59]} 3. Bc4 {[%clk 0:02:55.2]} 3... Bc5 {[%clk 0:02:57.8]} 4. d4
{[%clk 0:02:55.1]} 4... Bxd4 {[%clk 0:02:54.9]} 5. c3 {[%clk 0:02:54.1]} 5...
Bc5 {[%clk 0:02:53]} 6. b3 {[%clk 0:02:53.5]} 6... Nf6 {[%clk 0:02:49.4]} 7. b4
{[%clk 0:02:50.2]} 7... Bb6 {[%clk 0:02:41.9]} 8. b5 {[%clk 0:02:49.7]} 8... Na5
{[%clk 0:02:41]} 9. Nxe5 {[%clk 0:02:48.7]} 9... Nxc4 {[%clk 0:02:40.6]} 10.
Nxc4 {[%clk 0:02:48.3]} 10... Nxe4 {[%clk 0:02:37.1]} 11. Nxb6 {[%clk
0:02:46.8]} 11... axb6 {[%clk 0:02:34.2]} 12. Qd4 {[%clk 0:02:45.8]} 12... O-O
{[%clk 0:02:32.1]} 13. O-O {[%clk 0:02:43.4]} 13... Nc5 {[%clk 0:02:12.8]} 14.
Bb2 {[%clk 0:02:41.8]} 14... Na4 {[%clk 0:01:50.2]} 15. Ba3 {[%clk 0:02:37.9]}
15... d6 {[%clk 0:01:49.1]} 16. Nd2 {[%clk 0:02:36.4]} 16... Bf5 {[%clk
0:01:46]} 17. Rfe1 {[%clk 0:02:30.1]} 17... Re8 {[%clk 0:01:42.9]} 18. Nc4
{[%clk 0:02:25.7]} 18... Qf6 {[%clk 0:01:24.5]} 19. Qxf6 {[%clk 0:02:22.1]}
19... gxf6 {[%clk 0:01:24]} 20. Rxe8+ {[%clk 0:02:18.4]} 20... Rxe8 {[%clk
0:01:23.1]} 21. Bxd6 {[%clk 0:02:14.2]} 21... cxd6 {[%clk 0:01:16.5]} 22. Nxd6
{[%clk 0:02:15.1]} 22... Re5 {[%clk 0:01:15.7]} 23. f4 {[%clk 0:02:14.4]} 23...
Rd5 {[%clk 0:01:11.3]} 24. Nxf5 {[%clk 0:02:06.8]} 24... Re5 {[%clk 0:01:10.8]}
25. fxe5 {[%clk 0:02:06.2]} 25... Nxc3 {[%clk 0:00:59.1]} 26. exf6 {[%clk
0:02:04.4]} 26... h5 {[%clk 0:00:54.5]} 27. Rc1 {[%clk 0:02:03.7]} 27... Ne2+
{[%clk 0:00:53.9]} 28. Kf2 {[%clk 0:02:02.9]} 28... Nxc1 {[%clk 0:00:54.8]} 29.
Ne7+ {[%clk 0:02:00.2]} 29... Kh7 {[%clk 0:00:53.1]} 30. Nd5 {[%clk 0:02:01.1]}
30... Nxa2 {[%clk 0:00:49.3]} 31. Nxb6 {[%clk 0:02:01.4]} 31... Nc3 {[%clk
0:00:49]} 32. Nd7 {[%clk 0:02:00.1]} 32... Nxb5 {[%clk 0:00:46.7]} 33. Nc5
{[%clk 0:01:59.4]} 33... Nd6 {[%clk 0:00:43.6]} 34. Ke3 {[%clk 0:01:55.9]} 34...
Kg6 {[%clk 0:00:43.1]} 35. Nd7 {[%clk 0:01:52.5]} 35... b5 {[%clk 0:00:38.7]}
36. Kd4 {[%clk 0:01:51.6]} 36... Kf5 {[%clk 0:00:38]} 37. Kc5 {[%clk 0:01:51.1]}
37... Ne4+ {[%clk 0:00:34.9]} 38. Kxb5 {[%clk 0:01:50.6]} 38... Nxf6 {[%clk
0:00:35]} 39. Nxf6 {[%clk 0:01:49.1]} 39... Kxf6 {[%clk 0:00:35.2]} 40. Kc5
{[%clk 0:01:50]} 40... Ke5 {[%clk 0:00:35.1]} 41. Kc6 {[%clk 0:01:46]} 41... f5
{[%clk 0:00:34.2]} 42. Kd7 {[%clk 0:01:46]} 42... h4 {[%clk 0:00:33.9]} 43. Ke7
{[%clk 0:01:45.9]} 43... f4 {[%clk 0:00:32.4]} 44. Kf7 {[%clk 0:01:44.1]} 44...
Kf5 {[%clk 0:00:32.6]} 45. h3 {[%clk 0:01:42.3]} 45... f3 {[%clk 0:00:21.7]} 46.
gxf3 {[%clk 0:01:41.4]} 46... Kf4 {[%clk 0:00:22.6]} 47. Ke6 {[%clk 0:01:25.5]}
47... Kxf3 {[%clk 0:00:22.3]} 48. Kd5 {[%clk 0:01:26]} 48... Kg3 {[%clk
0:00:22.3]} 49. Ke4 {[%clk 0:01:25.9]} 49... Kxh3 {[%clk 0:00:22.3]} 50. Kf3
{[%clk 0:01:26.8]} 50... Kh2 {[%clk 0:00:22.1]} 51. Kf2 {[%clk 0:01:26.8]} 51...
h3 {[%clk 0:00:21.6]} 52. Kf1 {[%clk 0:01:24.8]} 52... Kh1 {[%clk 0:00:21.5]}
53. Kf2 {[%clk 0:01:24.9]} 53... h2 {[%clk 0:00:21.4]} 54. Kf1 {[%clk
0:01:23.7]} 1/2-1/2

[Event "*** Titled Tuesday Blitz"]
[Site "Chess.com"]
[Date "2020.05.12"]
[Round "7"]
[White "ChessTraining77"]
[Black "KuzubovYuriy"]
[Result "0-1"]
[WhiteElo "2546"]
[BlackElo "2689"]
[TimeControl "180+1"]
[EndTime "11:15:48 PDT"]
[Termination "KuzubovYuriy won by resignation"]

1. e4 {[%clk 0:03:00.9]} 1... c6 {[%clk 0:02:59.4]} 2. d4 {[%clk 0:02:59.5]}
2... d5 {[%clk 0:02:59.9]} 3. e5 {[%clk 0:02:59.8]} 3... Bf5 {[%clk 0:02:59.2]}
4. Nf3 {[%clk 0:02:59.7]} 4... e6 {[%clk 0:02:59.7]} 5. Be2 {[%clk 0:02:59.8]}
5... Nd7 {[%clk 0:02:58.8]} 6. O-O {[%clk 0:02:59.2]} 6... Ne7 {[%clk
0:02:58.4]} 7. Nbd2 {[%clk 0:02:59.2]} 7... h6 {[%clk 0:02:58.2]} 8. a4 {[%clk
0:02:58.6]} 8... a5 {[%clk 0:02:56.2]} 9. Nb3 {[%clk 0:02:57.8]} 9... Nc8 {[%clk
0:02:55.5]} 10. Bd2 {[%clk 0:02:57.3]} 10... Bb4 {[%clk 0:02:40.4]} 11. c3
{[%clk 0:02:55.5]} 11... Be7 {[%clk 0:02:37.5]} 12. c4 {[%clk 0:02:53.7]} 12...
dxc4 {[%clk 0:02:35.2]} 13. Bxc4 {[%clk 0:02:53.5]} 13... O-O {[%clk 0:02:35.6]}
14. h3 {[%clk 0:02:52.8]} 14... Ncb6 {[%clk 0:02:19.2]} 15. Bxa5 {[%clk
0:01:53.7]} 15... Qb8 {[%clk 0:01:34.1]} 16. Bd3 {[%clk 0:01:45.1]} 16... Bxd3
{[%clk 0:01:31.3]} 17. Qxd3 {[%clk 0:01:45]} 17... Rc8 {[%clk 0:01:23.2]} 18.
Bxb6 {[%clk 0:01:40]} 18... Nxb6 {[%clk 0:01:23]} 19. a5 {[%clk 0:01:39.7]}
19... Nd5 {[%clk 0:01:22.3]} 20. Rfc1 {[%clk 0:01:31.7]} 20... Nc7 {[%clk
0:01:08]} 21. Nfd2 {[%clk 0:01:24.9]} 21... Rd8 {[%clk 0:01:05.5]} 22. Qe4
{[%clk 0:01:16.5]} 22... Nb5 {[%clk 0:01:03.5]} 23. Nc4 {[%clk 0:01:15.8]} 23...
Qc7 {[%clk 0:00:59.6]} 24. Rd1 {[%clk 0:01:14.6]} 24... Bb4 {[%clk 0:00:57.3]}
25. Nc5 {[%clk 0:00:39.6]} 25... Nxd4 {[%clk 0:00:42.3]} 26. Nxb7 {[%clk
0:00:38.2]} 26... Qxb7 {[%clk 0:00:36.9]} 27. Rxd4 {[%clk 0:00:38.1]} 27... Rd5
{[%clk 0:00:35.1]} 28. Nd6 {[%clk 0:00:30.4]} 28... Bxd6 {[%clk 0:00:33.4]} 29.
exd6 {[%clk 0:00:29.7]} 29... Qxb2 {[%clk 0:00:32.4]} 30. Rxd5 {[%clk
0:00:20.3]} 30... Qxa1+ {[%clk 0:00:31.1]} 0-1

[Event "*** Titled Tuesday Blitz"]
[Site "Chess.com"]
[Date "2020.05.12"]
[Round "7"]
[White "Vamostodorecto"]
[Black "AndrewDGreen"]
[Result "1-0"]
[WhiteElo "2453"]
[BlackElo "2284"]
[TimeControl "180+1"]
[EndTime "11:15:48 PDT"]
[Termination "Vamostodorecto won by resignation"]

1. d4 {[%clk 0:03:00.9]} 1... Nf6 {[%clk 0:02:54.9]} 2. c4 {[%clk 0:03:00.8]}
2... g6 {[%clk 0:02:55.2]} 3. Nc3 {[%clk 0:03:00.9]} 3... Bg7 {[%clk 0:02:55.2]}
4. e4 {[%clk 0:03:00.5]} 4... d6 {[%clk 0:02:55.4]} 5. Be2 {[%clk 0:03:01]} 5...
O-O {[%clk 0:02:54.7]} 6. Nf3 {[%clk 0:03:01.5]} 6... Bg4 {[%clk 0:02:54.1]} 7.
O-O {[%clk 0:03:01.5]} 7... Nfd7 {[%clk 0:02:54.1]} 8. Be3 {[%clk 0:02:59.9]}
8... Nc6 {[%clk 0:02:53.6]} 9. d5 {[%clk 0:02:59.8]} 9... Bxf3 {[%clk
0:02:52.7]} 10. Bxf3 {[%clk 0:02:58.6]} 10... Na5 {[%clk 0:02:52.3]} 11. Be2
{[%clk 0:02:59.2]} 11... Bxc3 {[%clk 0:02:49.7]} 12. bxc3 {[%clk 0:02:57.7]}
12... e5 {[%clk 0:02:49.6]} 13. f4 {[%clk 0:02:45.3]} 13... exf4 {[%clk
0:02:34.8]} 14. Bxf4 {[%clk 0:02:46.2]} 14... f6 {[%clk 0:02:32.5]} 15. Bh6
{[%clk 0:02:39.1]} 15... Re8 {[%clk 0:02:28.4]} 16. Qd4 {[%clk 0:02:34.5]} 16...
Qe7 {[%clk 0:02:20.4]} 17. Bg4 {[%clk 0:02:31.6]} 17... Ne5 {[%clk 0:02:12.1]}
18. Be6+ {[%clk 0:02:22]} 18... Kh8 {[%clk 0:02:12]} 19. Rab1 {[%clk 0:02:15.4]}
19... b6 {[%clk 0:02:11.5]} 20. Rb2 {[%clk 0:02:04.6]} 20... Naxc4 {[%clk
0:01:20.7]} 21. Rbf2 {[%clk 0:02:03.4]} 21... Rf8 {[%clk 0:01:13]} 22. g4 {[%clk
0:01:55.9]} 22... g5 {[%clk 0:00:57.2]} 23. Kh1 {[%clk 0:01:33.8]} 23... a5
{[%clk 0:00:56.8]} 24. h4 {[%clk 0:01:32.6]} 24... gxh4 {[%clk 0:00:57.1]} 25.
g5 {[%clk 0:01:31.9]} 25... c5 {[%clk 0:00:28.8]} 26. Qd1 {[%clk 0:01:00.5]}
26... Qe8 {[%clk 0:00:16]} 27. gxf6 {[%clk 0:00:54.4]} 27... Qg6 {[%clk
0:00:15.7]} 28. Bg7+ {[%clk 0:00:53.5]} 28... Qxg7 {[%clk 0:00:11.1]} 29. fxg7+
{[%clk 0:00:54.4]} 29... Kxg7 {[%clk 0:00:12]} 30. Rxf8 {[%clk 0:00:45.1]} 1-0

[Event "*** Titled Tuesday Blitz"]
[Site "Chess.com"]
[Date "2020.05.12"]
[Round "7"]
[White "chessuriel"]
[Black "barbara25"]
[Result "0-1"]
[WhiteElo "2152"]
[BlackElo "2297"]
[TimeControl "180+1"]
[EndTime "11:15:48 PDT"]
[Termination "barbara25 won by resignation"]

1. e4 {[%clk 0:03:00.9]} 1... c5 {[%clk 0:02:56.9]} 2. Nf3 {[%clk 0:03:00.2]}
2... d6 {[%clk 0:02:56.1]} 3. d4 {[%clk 0:03:00.5]} 3... cxd4 {[%clk 0:02:55.7]}
4. Nxd4 {[%clk 0:03:00.6]} 4... Nf6 {[%clk 0:02:56.1]} 5. Nc3 {[%clk 0:03:00.2]}
5... a6 {[%clk 0:02:56.2]} 6. Bc4 {[%clk 0:03:00.3]} 6... e6 {[%clk 0:02:55.6]}
7. Bb3 {[%clk 0:02:59.9]} 7... Be7 {[%clk 0:02:55.5]} 8. Qf3 {[%clk 0:02:58.6]}
8... Qc7 {[%clk 0:02:53.4]} 9. O-O {[%clk 0:02:57.7]} 9... Nc6 {[%clk
0:02:52.4]} 10. Nxc6 {[%clk 0:02:56.3]} 10... bxc6 {[%clk 0:02:52]} 11. Qg3
{[%clk 0:02:55.3]} 11... O-O {[%clk 0:02:47.1]} 12. Bh6 {[%clk 0:02:52.7]} 12...
Ne8 {[%clk 0:02:46.8]} 13. f4 {[%clk 0:02:43.5]} 13... Kh8 {[%clk 0:02:03.8]}
14. Bg5 {[%clk 0:02:42.7]} 14... Bxg5 {[%clk 0:02:02.6]} 15. Qxg5 {[%clk
0:02:28.7]} 15... f6 {[%clk 0:01:59.1]} 16. Qg4 {[%clk 0:02:15.1]} 16... Qe7
{[%clk 0:01:49.1]} 17. f5 {[%clk 0:02:11.9]} 17... e5 {[%clk 0:01:47.3]} 18. Rf3
{[%clk 0:02:03.9]} 18... g5 {[%clk 0:01:44]} 19. h4 {[%clk 0:01:56]} 19... Ng7
{[%clk 0:01:28.6]} 20. hxg5 {[%clk 0:01:46]} 20... fxg5 {[%clk 0:01:23.9]} 21.
f6 {[%clk 0:01:32.3]} 21... Bxg4 {[%clk 0:01:07.9]} 22. fxe7 {[%clk 0:01:30.8]}
22... Rxf3 {[%clk 0:01:07.5]} 23. gxf3 {[%clk 0:01:29.2]} 23... Bxf3 {[%clk
0:01:07.4]} 24. Rf1 {[%clk 0:01:28.4]} 24... g4 {[%clk 0:01:07.4]} 25. Bf7
{[%clk 0:01:22]} 25... Ne8 {[%clk 0:01:04.8]} 26. Ne2 {[%clk 0:01:04.8]} 26...
Kg7 {[%clk 0:01:03.7]} 27. Bxe8 {[%clk 0:00:58.2]} 27... Rxe8 {[%clk 0:01:03.3]}
28. Ng3 {[%clk 0:00:58.4]} 28... Kf7 {[%clk 0:00:55.7]} 29. Nf5 {[%clk
0:00:57.5]} 29... Rxe7 {[%clk 0:00:51.6]} 30. Nxe7 {[%clk 0:00:54.1]} 30... Kxe7
{[%clk 0:00:51.5]} 31. Re1 {[%clk 0:00:53.6]} 31... Ke6 {[%clk 0:00:50.5]} 32.
Kf2 {[%clk 0:00:53.4]} 32... h5 {[%clk 0:00:48]} 33. Ke3 {[%clk 0:00:52.6]}
33... h4 {[%clk 0:00:46.9]} 34. Kf2 {[%clk 0:00:51.3]} 34... d5 {[%clk
0:00:45.6]} 35. exd5+ {[%clk 0:00:50]} 35... cxd5 {[%clk 0:00:45.5]} 36. c3
{[%clk 0:00:47.5]} 36... e4 {[%clk 0:00:45.3]} 37. Ke3 {[%clk 0:00:41.1]} 37...
Ke5 {[%clk 0:00:40.6]} 38. Kf2 {[%clk 0:00:40]} 38... g3+ {[%clk 0:00:39.9]} 39.
Kg1 {[%clk 0:00:39.3]} 39... h3 {[%clk 0:00:39.9]} 40. b3 {[%clk 0:00:35.9]}
40... h2+ {[%clk 0:00:38.9]} 0-1

[Event "*** Titled Tuesday Blitz"]
[Site "Chess.com"]
[Date "2020.05.12"]
[Round "7"]
[White "Firouzja2003"]
[Black "VladDobrov"]
[Result "1-0"]
[WhiteElo "3152"]
[BlackElo "2766"]
[TimeControl "180+1"]
[EndTime "11:15:53 PDT"]
[Termination "Firouzja2003 won on time"]

1. e4 {[%clk 0:03:00.9]} 1... e5 {[%clk 0:03:00.2]} 2. Nf3 {[%clk 0:02:52.8]}
2... Nc6 {[%clk 0:03:00.4]} 3. Bb5 {[%clk 0:02:51.3]} 3... Nf6 {[%clk
0:03:00.7]} 4. d3 {[%clk 0:02:45.1]} 4... Bc5 {[%clk 0:02:59.3]} 5. Bxc6 {[%clk
0:02:45.1]} 5... dxc6 {[%clk 0:02:59.4]} 6. Nbd2 {[%clk 0:02:45.7]} 6... Qe7
{[%clk 0:02:57]} 7. Nc4 {[%clk 0:02:41]} 7... Nd7 {[%clk 0:02:57.3]} 8. O-O
{[%clk 0:02:36.9]} 8... f6 {[%clk 0:02:39.9]} 9. Kh1 {[%clk 0:02:30.1]} 9... Nb6
{[%clk 0:02:40.1]} 10. Na5 {[%clk 0:02:30.1]} 10... O-O {[%clk 0:02:36.5]} 11.
a3 {[%clk 0:02:28.1]} 11... Rb8 {[%clk 0:02:35.1]} 12. b4 {[%clk 0:02:25]} 12...
Bd6 {[%clk 0:02:35.5]} 13. Nh4 {[%clk 0:02:25]} 13... f5 {[%clk 0:01:55.4]} 14.
Nxf5 {[%clk 0:02:17.1]} 14... Bxf5 {[%clk 0:01:55.4]} 15. exf5 {[%clk 0:02:18]}
15... e4 {[%clk 0:01:56.3]} 16. Bb2 {[%clk 0:02:15.4]} 16... Rxf5 {[%clk
0:01:49.4]} 17. Qe2 {[%clk 0:01:50.9]} 17... Re8 {[%clk 0:01:01.8]} 18. g3
{[%clk 0:01:26.9]} 18... exd3 {[%clk 0:00:49.6]} 19. Qxd3 {[%clk 0:01:21.5]}
19... Qf7 {[%clk 0:00:50]} 20. f4 {[%clk 0:01:07.9]} 20... Nd5 {[%clk
0:00:48.6]} 21. Rae1 {[%clk 0:00:58.8]} 21... Rxe1 {[%clk 0:00:42.4]} 22. Rxe1
{[%clk 0:00:59.7]} 22... g5 {[%clk 0:00:04.1]} 23. Qd4 {[%clk 0:00:40.4]} 23...
Nf6 {[%clk 0:00:03.9]} 24. Nxb7 {[%clk 0:00:32.6]} 24... gxf4 {[%clk 0:00:03.5]}
25. g4 {[%clk 0:00:32.6]} 1-0

[Event "*** Titled Tuesday Blitz"]
[Site "Chess.com"]
[Date "2020.05.12"]
[Round "7"]
[White "Enriquack"]
[Black "Yuri202062"]
[Result "0-1"]
[WhiteElo "2277"]
[BlackElo "2483"]
[TimeControl "180+1"]
[EndTime "11:15:55 PDT"]
[Termination "Yuri202062 won by resignation"]

1. e4 {[%clk 0:03:00.9]} 1... c5 {[%clk 0:03:00]} 2. Nf3 {[%clk 0:03:00.7]} 2...
e6 {[%clk 0:03:00.2]} 3. d4 {[%clk 0:03:00.8]} 3... cxd4 {[%clk 0:03:00.4]} 4.
Nxd4 {[%clk 0:03:01.7]} 4... a6 {[%clk 0:03:00.6]} 5. Bd3 {[%clk 0:03:00.8]}
5... Nf6 {[%clk 0:02:58.3]} 6. O-O {[%clk 0:02:55.4]} 6... d6 {[%clk 0:02:58.6]}
7. c4 {[%clk 0:02:53.7]} 7... g6 {[%clk 0:02:58.3]} 8. Nc3 {[%clk 0:02:53.6]}
8... Bg7 {[%clk 0:02:58.6]} 9. Be3 {[%clk 0:02:52.4]} 9... O-O {[%clk
0:02:58.8]} 10. f3 {[%clk 0:02:34.1]} 10... Nbd7 {[%clk 0:02:57.6]} 11. Qd2
{[%clk 0:02:33.4]} 11... d5 {[%clk 0:02:57.1]} 12. exd5 {[%clk 0:02:19.6]} 12...
exd5 {[%clk 0:02:56.8]} 13. cxd5 {[%clk 0:02:16.7]} 13... Nb6 {[%clk 0:02:56]}
14. Be4 {[%clk 0:02:01.7]} 14... Nbxd5 {[%clk 0:02:48.6]} 15. Bf2 {[%clk
0:01:57.3]} 15... Nxc3 {[%clk 0:02:44.3]} 16. Qxc3 {[%clk 0:01:56.7]} 16... Nxe4
{[%clk 0:02:44.3]} 17. fxe4 {[%clk 0:01:57.6]} 17... Bd7 {[%clk 0:02:37.1]} 18.
Rad1 {[%clk 0:01:56.4]} 18... Qe7 {[%clk 0:02:34.2]} 19. Rfe1 {[%clk 0:01:54.4]}
19... Rac8 {[%clk 0:02:29.8]} 20. Qb3 {[%clk 0:01:54.2]} 20... Bg4 {[%clk
0:02:24.7]} 21. Rd3 {[%clk 0:01:50.3]} 21... Rfd8 {[%clk 0:02:23.7]} 22. h3
{[%clk 0:01:23.2]} 22... Be6 {[%clk 0:02:22.4]} 23. Nxe6 {[%clk 0:01:19.6]}
23... Rxd3 {[%clk 0:02:22.3]} 24. Qxd3 {[%clk 0:01:18.4]} 24... Qxe6 {[%clk
0:02:22.6]} 25. b3 {[%clk 0:01:18.1]} 25... h5 {[%clk 0:02:19.3]} 26. e5 {[%clk
0:01:14.8]} 26... Re8 {[%clk 0:01:57.5]} 27. Bg3 {[%clk 0:01:07.7]} 27... Qc6
{[%clk 0:01:56.8]} 28. Kh1 {[%clk 0:01:03.6]} 28... Re7 {[%clk 0:01:38.9]} 29.
Qd8+ {[%clk 0:00:57.7]} 29... Qe8 {[%clk 0:01:38.8]} 30. Qd6 {[%clk 0:00:57.3]}
30... Re6 {[%clk 0:01:35.5]} 31. Qd5 {[%clk 0:00:51.5]} 31... Qc6 {[%clk
0:01:33.9]} 32. Qd8+ {[%clk 0:00:50.2]} 32... Re8 {[%clk 0:01:33.4]} 33. Qd6
{[%clk 0:00:44.7]} 33... Qxd6 {[%clk 0:01:22.8]} 34. exd6 {[%clk 0:00:44.8]}
34... Rxe1+ {[%clk 0:01:22.9]} 35. Bxe1 {[%clk 0:00:45.7]} 35... Kf8 {[%clk
0:01:22.9]} 36. Bh4 {[%clk 0:00:39.4]} 36... Ke8 {[%clk 0:01:22.3]} 37. Kg1
{[%clk 0:00:21.8]} 37... Kd7 {[%clk 0:01:22.1]} 38. Kf2 {[%clk 0:00:22.4]} 38...
Kxd6 {[%clk 0:01:22.3]} 39. Kf3 {[%clk 0:00:22.9]} 39... Kd5 {[%clk 0:01:22.3]}
40. Ke3 {[%clk 0:00:22.3]} 40... f5 {[%clk 0:01:16.7]} 41. Bg5 {[%clk
0:00:21.7]} 41... Be5 {[%clk 0:01:12.4]} 42. Kd3 {[%clk 0:00:21.2]} 42... b5
{[%clk 0:01:11.3]} 43. a4 {[%clk 0:00:21]} 43... bxa4 {[%clk 0:01:08]} 44. bxa4
{[%clk 0:00:21.9]} 44... Kc5 {[%clk 0:01:08.2]} 45. Bd8 {[%clk 0:00:20.1]} 45...
Kb4 {[%clk 0:01:06.8]} 46. a5 {[%clk 0:00:19.8]} 46... Kb5 {[%clk 0:01:06.9]}
47. g4 {[%clk 0:00:18.5]} 47... fxg4 {[%clk 0:01:05.5]} 0-1

[Event "*** Titled Tuesday Blitz"]
[Site "Chess.com"]
[Date "2020.05.12"]
[Round "7"]
[White "Didici"]
[Black "TERMINATOR_PC"]
[Result "1-0"]
[WhiteElo "2635"]
[BlackElo "2465"]
[TimeControl "180+1"]
[EndTime "11:15:58 PDT"]
[Termination "Didici won by resignation"]

1. d4 {[%clk 0:02:58.1]} 1... Nf6 {[%clk 0:03:00.9]} 2. c4 {[%clk 0:02:57.4]}
2... g6 {[%clk 0:02:59.1]} 3. f3 {[%clk 0:02:52.5]} 3... Bg7 {[%clk 0:02:58.6]}
4. e4 {[%clk 0:02:51.9]} 4... d6 {[%clk 0:02:59.2]} 5. Ne2 {[%clk 0:02:51.6]}
5... O-O {[%clk 0:02:52.9]} 6. Be3 {[%clk 0:02:49.5]} 6... c5 {[%clk 0:02:52.6]}
7. d5 {[%clk 0:02:49]} 7... e6 {[%clk 0:02:50.3]} 8. Nec3 {[%clk 0:02:48.2]}
8... e5 {[%clk 0:02:34.4]} 9. Nd2 {[%clk 0:02:43.3]} 9... Nh5 {[%clk 0:02:31.3]}
10. Qc2 {[%clk 0:02:31]} 10... Na6 {[%clk 0:02:27.5]} 11. O-O-O {[%clk
0:02:27.3]} 11... f5 {[%clk 0:02:15.5]} 12. exf5 {[%clk 0:02:13.1]} 12... gxf5
{[%clk 0:02:15.8]} 13. a3 {[%clk 0:02:12]} 13... Nc7 {[%clk 0:02:06.6]} 14. Bd3
{[%clk 0:02:06.5]} 14... Nf4 {[%clk 0:01:22.6]} 15. g4 {[%clk 0:01:56.4]} 15...
Nxd3+ {[%clk 0:01:06.1]} 16. Qxd3 {[%clk 0:01:57.3]} 16... e4 {[%clk 0:01:06.6]}
17. fxe4 {[%clk 0:01:55.1]} 17... f4 {[%clk 0:01:06.6]} 18. Bf2 {[%clk
0:01:50.1]} 18... Bxg4 {[%clk 0:00:52.9]} 19. Rdg1 {[%clk 0:01:45.4]} 19... Qd7
{[%clk 0:00:53.5]} 20. Rg2 {[%clk 0:01:17.8]} 20... Rf7 {[%clk 0:00:41.1]} 21.
Rhg1 {[%clk 0:01:16.5]} 21... Bh3 {[%clk 0:00:22.5]} 22. Rg5 {[%clk 0:01:11]}
22... Kh8 {[%clk 0:00:21.6]} 23. Nf3 {[%clk 0:00:57]} 23... Raf8 {[%clk
0:00:12.6]} 24. e5 {[%clk 0:00:54.8]} 24... Bf5 {[%clk 0:00:07.7]} 25. Qe2
{[%clk 0:00:41.5]} 25... dxe5 {[%clk 0:00:05.7]} 26. Nxe5 {[%clk 0:00:40.6]}
26... Bxe5 {[%clk 0:00:02.3]} 27. Qxe5+ {[%clk 0:00:40]} 27... Rf6 {[%clk
0:00:02.8]} 28. Bxc5 {[%clk 0:00:36.6]} 28... Re8 {[%clk 0:00:01.5]} 29. Qxf6+
{[%clk 0:00:36]} 1-0

[Event "*** Titled Tuesday Blitz"]
[Site "Chess.com"]
[Date "2020.05.12"]
[Round "7"]
[White "TST2014"]
[Black "MITerryble"]
[Result "0-1"]
[WhiteElo "2584"]
[BlackElo "2830"]
[TimeControl "180+1"]
[EndTime "11:15:59 PDT"]
[Termination "MITerryble won on time"]

1. d4 {[%clk 0:03:00.9]} 1... e6 {[%clk 0:02:59.3]} 2. c4 {[%clk 0:03:00.2]}
2... Bb4+ {[%clk 0:02:58.7]} 3. Bd2 {[%clk 0:02:59.7]} 3... Qe7 {[%clk
0:02:58.8]} 4. Nf3 {[%clk 0:03:00]} 4... Nf6 {[%clk 0:02:59.2]} 5. g3 {[%clk
0:03:00.1]} 5... Nc6 {[%clk 0:02:59.6]} 6. Nc3 {[%clk 0:02:54.9]} 6... O-O
{[%clk 0:02:58.8]} 7. Bg2 {[%clk 0:02:54]} 7... d6 {[%clk 0:02:59.3]} 8. d5
{[%clk 0:02:41.9]} 8... exd5 {[%clk 0:02:50.7]} 9. Nxd5 {[%clk 0:02:39.2]} 9...
Bxd2+ {[%clk 0:02:43.1]} 10. Qxd2 {[%clk 0:02:40.1]} 10... Qd8 {[%clk
0:02:43.6]} 11. O-O {[%clk 0:02:31.4]} 11... Re8 {[%clk 0:02:39.7]} 12. Rfe1
{[%clk 0:02:28]} 12... Ne4 {[%clk 0:02:30.1]} 13. Qf4 {[%clk 0:02:23.5]} 13...
h6 {[%clk 0:02:18.6]} 14. Rad1 {[%clk 0:02:14.1]} 14... a5 {[%clk 0:02:11.5]}
15. Nd4 {[%clk 0:02:05.7]} 15... Nxd4 {[%clk 0:02:09.1]} 16. Rxd4 {[%clk
0:01:58.1]} 16... Nc5 {[%clk 0:02:09.1]} 17. Nc3 {[%clk 0:01:35.3]} 17... Ne6
{[%clk 0:02:08.7]} 18. Qd2 {[%clk 0:01:35.2]} 18... Nxd4 {[%clk 0:02:09.1]} 19.
Qxd4 {[%clk 0:01:35.7]} 19... c6 {[%clk 0:02:06.7]} 20. Rd1 {[%clk 0:01:34.4]}
20... Be6 {[%clk 0:02:07]} 21. b3 {[%clk 0:01:33.1]} 21... Qe7 {[%clk
0:02:03.2]} 22. Qxd6 {[%clk 0:01:32.3]} 22... Rad8 {[%clk 0:02:03]} 23. Qxe7
{[%clk 0:01:31.8]} 23... Rxd1+ {[%clk 0:02:03.9]} 24. Nxd1 {[%clk 0:01:31.9]}
24... Rxe7 {[%clk 0:02:04.8]} 25. Kf1 {[%clk 0:01:29.6]} 25... Bg4 {[%clk
0:02:04.7]} 26. Ne3 {[%clk 0:01:25.2]} 26... Be6 {[%clk 0:02:04.9]} 27. Ke1
{[%clk 0:01:24.5]} 27... Rd7 {[%clk 0:02:03]} 28. f4 {[%clk 0:01:21.8]} 28... g6
{[%clk 0:02:01.5]} 29. g4 {[%clk 0:01:19.5]} 29... Rd4 {[%clk 0:02:00.6]} 30. f5
{[%clk 0:01:18.6]} 30... Bc8 {[%clk 0:01:58.7]} 31. Bf3 {[%clk 0:01:12.8]} 31...
gxf5 {[%clk 0:01:50.7]} 32. gxf5 {[%clk 0:01:12]} 32... Kg7 {[%clk 0:01:50.6]}
33. Bg4 {[%clk 0:00:54.1]} 33... Kf6 {[%clk 0:01:44.8]} 34. h3 {[%clk
0:00:29.2]} 34... Kg5 {[%clk 0:01:40.7]} 35. Nc2 {[%clk 0:00:27.5]} 35... Re4
{[%clk 0:01:36.7]} 36. Kf2 {[%clk 0:00:22.8]} 36... Bxf5 {[%clk 0:01:34.4]} 37.
Bf3 {[%clk 0:00:21.7]} 37... Re7 {[%clk 0:01:26.4]} 38. Ne3 {[%clk 0:00:16.5]}
38... Bxh3 {[%clk 0:01:26.4]} 39. Nd1 {[%clk 0:00:13.5]} 39... h5 {[%clk
0:01:21.8]} 40. Nc3 {[%clk 0:00:13.3]} 40... Bg4 {[%clk 0:01:20]} 41. Ne4+
{[%clk 0:00:12.5]} 41... Kf4 {[%clk 0:01:20.3]} 42. Nf6 {[%clk 0:00:10.7]} 42...
Bxf3 {[%clk 0:01:17.3]} 43. exf3 {[%clk 0:00:10.5]} 43... h4 {[%clk 0:01:17.3]}
44. Nh5+ {[%clk 0:00:09.7]} 44... Kg5 {[%clk 0:01:17.4]} 45. Ng7 {[%clk
0:00:09.3]} 45... Kg6 {[%clk 0:01:17.1]} 0-1